bitfinex-derivatives/quotes_ETHF0:USTF0_20250502
["timestamp","ask_amount","ask_price","bid_price","bid_amount"]
[1746227878606,13.41074214,1840.8,1840.7,132.524]
[1746227879003,13.41074214,1840.8,1840.7,134.1909]
[1746227880107,13.41074214,1840.8,1840.7,132.524]
[1746227881811,13.41074214,1840.8,1840.7,133.61005]
[1746227882007,13.41074214,1840.8,1840.7,135.29695]
[1746227883311,13.41074214,1840.8,1840.7,134.2109]
[1746227883711,7.26939,1840.8,1840.7,135.29695]
[1746227885015,7.26939,1840.8,1840.7,134.2109]
[1746227885209,7.26939,1840.8,1840.7,132.524]
[1746227887514,7.26939,1840.8,1840.7,133.61005]
[1746227887713,4.78199,1840.8,1840.7,135.28475]
[1746227888015,4.78199,1840.8,1840.7,136.11785]
[1746227900930,3.696,1840.8,1840.7,136.11785]
[1746227901926,3.696,1840.8,1840.7,139.32565]
[1746227903126,4.78199,1840.8,1840.7,139.32565]
[1746227903522,3.696,1840.8,1840.7,139.32565]
[1746227903722,4.78199,1840.8,1840.7,139.32565]
[1746227904123,3.696,1840.8,1840.7,139.32565]
[1746227905131,4.78199,1840.8,1840.7,139.32565]
[1746227905429,3.696,1840.8,1840.7,139.32565]
[1746227908231,3.696,1840.9,1840.8,1.08599]
[1746227908423,3.696,1840.9,1840.8,2.72239]
[1746227910229,3.2078,1841.2,1841.1,1.08581]
[1746227911133,6.9038,1841.2,1841.1,2.75991]
[1746227913040,6.9038,1841.2,1841.1,1.08581]
[1746227913249,3.696,1841.2,1841.1,1.08581]
[1746227913535,3.696,1841.2,1841.1,5.91021]
[1746227916238,2.4114,1841.3,1841.2,1.08575]
[1746227916433,2.4114,1841.3,1841.2,3.60405]
[1746227916634,0.8146,1841.3,1841.2,3.60405]
[1746227917233,4.5106,1841.3,1841.2,3.60405]
[1746227918234,1.5967,1841.4,1841.3,1.0857]
[1746227918429,1.5967,1841.4,1841.3,6.8348]
[1746227918633,5.44855058,1841.6,1841.5,1.08558]
[1746227918841,7.19415058,1841.6,1841.5,3.2078]
[1746227919138,7.19415058,1841.6,1841.5,4.29338]
[1746227919139,10.89015058,1841.6,1841.5,4.29338]
[1746227919437,10.89015058,1841.6,1841.5,5.14568]
[1746227920234,5.4416,1841.6,1841.5,5.14568]
[1746227930044,3.696,1841.6,1841.5,5.14568]
[1746227934144,1.6735,1841.9,1841.8,1.0854]
[1746227934944,1.6735,1841.9,1841.8,3.5823]
[1746227935141,1.17512,1841.9,1841.8,3.5823]
[1746227935449,5.44855058,1842.3,1842.2,1.08516]
[1746227936142,9.14455058,1842.3,1842.2,1.08516]
[1746227936644,3.696,1842.3,1842.2,1.08516]
[1746227939443,9.78111,1842.3,1842.2,1.08516]
[1746227940649,1.08516,1842.2,1842.1,1.08516]
[1746227941047,7.98895,1842.3,1842.2,1.08516]
[1746227941354,15.11295,1842.3,1842.2,1.08516]
[1746227941539,14.0278,1842.3,1842.2,1.08516]
[1746227941849,14.0278,1842.3,1842.0,2.71308]
[1746227942052,10.11295,1842.3,1842.2,1.08516]
[1746227942348,18.80895,1842.3,1842.2,1.08516]
[1746227942550,1.08521,1842.2,1842.1,1.08516]
[1746227942945,6.08521,1842.2,1842.1,1.08516]
[1746227943153,9.78121,1842.2,1842.1,1.08516]
[1746227944749,9.78121,1842.2,1841.9,5.42672]
[1746227944750,14.516,1842.2,1841.7,3.2078]
[1746227944953,1.08537,1841.9,1841.8,1.08533]
[1746227946155,4.78137,1841.9,1841.8,1.08533]
[1746227947054,2.71351,1841.8,1841.5,132.524]
[1746227947246,1.08552,1841.6,1841.5,133.60954]
[1746227948254,4.78152,1841.6,1841.5,133.60954]
[1746227950051,4.78152,1841.6,1841.5,1.08554]
[1746227952954,6.50522,1841.6,1841.5,1.08554]
[1746227955255,1.08564,1841.5,1841.4,1.08559]
[1746227955457,3.65434,1841.5,1841.4,1.08559]
[1746227956245,7.35034,1841.5,1841.4,1.08559]
[1746227959352,5.44,1841.4,1840.8,3.2078]
[1746227959553,2.71518,1840.7,1840.3,5.07280417]
[1746227959760,1.08646,1840.0,1839.9,35.15164952]
[1746227959959,4.29426,1840.0,1839.9,35.15164952]
[1746227960258,6.9038,1840.0,1839.9,36.23816952]
[1746227960461,6.9038,1840.0,1839.9,37.91526952]
[1746227961462,3.696,1840.0,1839.9,42.91526952]
[1746227961649,3.696,1840.0,1839.9,43.76826952]
[1746227961853,3.696,1840.0,1839.9,38.76826952]
[1746227962360,4.12064416,1840.0,1839.9,38.76826952]
[1746227962561,4.12064416,1840.0,1839.9,3.61662]
[1746227965764,3.696,1840.0,1839.9,3.61662]
[1746227966961,3.696,1840.0,1839.9,8.61662]
[1746227970865,3.696,1840.0,1839.9,3.61662]
[1746227981081,3.696,1840.0,1839.9,136.14062]
[1746227983583,4.12107959,1840.0,1839.9,136.14062]
[1746227988488,0.7895,1840.4,1840.3,1.08629]
[1746227989172,4.4855,1840.4,1840.3,1.08629]
[1746227989774,6.1025,1840.4,1840.3,1.08629]
[1746227995388,9.3103,1840.4,1840.3,1.08629]
[1746227996592,5.313,1840.4,1840.3,1.08629]
[1746228000593,5.73693883,1840.4,1840.3,1.08629]
[1746228005190,4.11993883,1840.4,1840.3,1.08629]
[1746228005395,4.11993883,1840.4,1840.3,2.76039]
[1746228005794,5.70533883,1840.4,1840.3,2.76039]
[1746228007289,11.84657765,1840.4,1840.3,2.76039]
[1746228012002,11.84657765,1840.4,1840.3,135.28439]
[1746228018514,11.84640751,1840.4,1840.3,135.28439]
[1746228018816,11.42263882,1840.4,1840.3,135.28439]
[1746228019509,11.15370937,1840.4,1840.3,135.28439]
[1746228019712,5.70515879,1840.4,1840.3,135.28439]
[1746228022112,5.70515879,1840.4,1840.3,133.61029]
[1746228023311,11.84528103,1840.4,1840.3,133.61029]
[1746228026213,15.05308103,1840.4,1840.3,133.61029]
[1746228026712,24.98620599,1840.4,1840.3,133.61029]
[1746228028017,26.07243599,1840.4,1840.3,133.61029]
[1746228028312,24.98620599,1840.4,1840.3,133.61029]
[1746228028711,26.07243599,1840.4,1840.3,133.61029]
[1746228029213,24.98620599,1840.4,1840.3,133.61029]
[1746228029712,24.98620599,1840.4,1840.3,135.32489]
[1746228031316,24.986168,1840.4,1840.3,135.32489]
[1746228033220,24.986168,1840.4,1840.3,133.61029]
[1746228033716,26.072398,1840.4,1840.3,133.61029]
[1746228034419,24.986168,1840.4,1840.3,133.61029]
[1746228036119,21.778368,1840.4,1840.3,133.61029]
[1746228036317,24.986168,1840.4,1840.3,133.61029]
[1746228037310,21.778368,1840.4,1840.3,133.61029]
[1746228037507,24.986168,1840.4,1840.3,133.61029]
[1746228037710,26.072398,1840.4,1840.3,133.61029]
[1746228038418,22.864598,1840.4,1840.3,133.61029]
[1746228038722,26.072398,1840.4,1840.3,133.61029]
[1746228038918,26.072398,1840.4,1840.3,135.28449]
[1746228041515,24.986168,1840.4,1840.3,135.28449]
[1746228042119,26.072398,1840.4,1840.3,135.28449]
[1746228042719,24.986168,1840.4,1840.3,135.28449]
[1746228048029,26.072398,1840.4,1840.3,135.28449]
[1746228048418,26.07259637,1840.4,1840.3,135.28449]
[1746228051233,27.88841532,1840.4,1840.3,135.28449]
[1746228051436,24.68061532,1840.4,1840.3,135.28449]
[1746228051734,27.88841532,1840.4,1840.3,135.28449]
[1746228053636,24.68061532,1840.4,1840.3,135.28449]
[1746228054036,27.88841532,1840.4,1840.3,135.28449]
[1746228055338,18.80932059,1840.4,1840.3,135.28449]
[1746228058840,17.72309059,1840.4,1840.3,135.28449]
[1746228061845,18.80932059,1840.4,1840.3,135.28449]
[1746228065538,18.80938434,1840.4,1840.3,135.28449]
[1746228065743,27.88847907,1840.4,1840.3,135.28449]
[1746228069948,26.80224907,1840.4,1840.3,135.28449]
[1746228070151,27.88847907,1840.4,1840.3,135.28449]
[1746228073049,26.80224907,1840.4,1840.3,135.28449]
[1746228073644,21.58506615,1840.4,1840.3,138.49229]
[1746228074144,22.00900648,1840.4,1840.3,138.49229]
[1746228074345,16.49960648,1840.4,1840.3,143.49229]
[1746228074549,9.51778218,1840.4,1840.3,143.49229]
[1746228074749,10.89491368,1840.7,1840.6,1.08611]
[1746228076252,14.59091368,1840.7,1840.6,1.08611]
[1746228076653,7.32716995,1840.7,1840.6,1.08611]
[1746228077648,7.32716995,1840.7,1840.6,2.70681]
[1746228078154,7.32716995,1840.7,1840.6,4.41541]
[1746228080658,3.696,1840.7,1840.6,4.41541]
[1746228084262,2.56331,1840.7,1840.6,4.41541]
[1746228085161,1.6515,1841.0,1840.9,1.08593]
[1746228085460,3.63116995,1841.1,1841.0,1.08587]
[1746228085760,3.63116995,1841.1,1840.8,7.81254]
[1746228085961,3.63116995,1841.1,1841.0,1.08587]
[1746228086164,7.32716995,1841.1,1841.0,1.08587]
[1746228086461,7.32716995,1841.1,1841.0,2.72857]
[1746228089868,3.696,1841.1,1841.0,2.72857]
[1746228092963,5.3403,1841.1,1841.0,2.72857]
[1746228101076,6.208,1841.1,1841.0,2.72857]
[1746228103875,6.9966,1841.1,1841.0,2.72857]
[1746228104274,6.9966,1841.1,1841.0,135.25257]
[1746228106881,6.9966,1841.1,1841.0,133.60987]
[1746228119689,6.208,1841.1,1841.0,133.60987]
[1746228119983,0.79693,1841.1,1841.0,135.30637]
[1746228120185,1.7201,1841.3,1841.2,1.08575]
[1746228120585,0.5194,1841.3,1841.2,3.60355]
[1746228120784,1.7196,1841.4,1841.3,1.0857]
[1746228120987,1.7196,1841.4,1841.3,2.7422]
[1746228121182,5.4156,1841.4,1841.3,2.7422]
[1746228126295,5.4156,1841.4,1841.3,2.7422]
[1746228126593,5.4156,1841.4,1841.3,5.95]
[1746228132494,5.4156,1841.4,1841.3,1.0857]
[1746228134197,1.6331,1841.5,1841.4,1.08564]
[1746228134700,1.6331,1841.5,1841.4,2.71344]
[1746228135092,5.3291,1841.5,1841.4,2.71344]
[1746228136603,0.55023,1841.5,1841.4,7.71344]
[1746228136790,3.63116995,1841.7,1841.6,1.08552]
[1746228136993,3.63116995,1841.7,1841.6,7.74132]
[1746228137295,7.32716995,1841.7,1841.6,7.74132]
[1746228137495,7.32716995,1841.7,1841.6,9.34642]
[1746228138405,6.18652995,1841.7,1841.6,9.34642]
[1746228139213,1.32340995,1841.7,1841.6,9.34642]
[1746228139513,9.95e-06,1841.7,1841.6,9.34642]
[1746228140117,6.9781,1841.9,1841.8,1.0854]
[1746228145522,6.98503688,1841.9,1841.8,1.0854]
[1746228145918,6.98503688,1841.9,1841.8,4.2932]
[1746228146115,6.98503688,1841.9,1841.8,1.0854]
[1746228156121,13.07037688,1841.9,1841.8,1.0854]
[1746228156622,1.08544,1841.8,1841.7,1.08546]
[1746228156822,5.94384,1841.8,1841.7,1.08546]
[1746228157014,10.94384,1841.8,1841.7,1.08546]
[1746228157211,14.63984,1841.8,1841.7,1.08546]
[1746228160824,9.63984,1841.8,1841.7,1.08546]
[1746228169632,15.77882864,1841.8,1841.7,1.08546]
[1746228172432,12.57102864,1841.8,1841.7,1.08546]
[1746228172731,1.08557,1841.6,1841.5,1.08552]
[1746228173231,8.10927,1841.6,1841.5,1.08552]
[1746228176625,11.31707,1841.6,1841.5,1.08552]
[1746228179335,8.10927,1841.6,1841.5,1.08552]
[1746228179729,11.31707,1841.6,1841.5,1.08552]
[1746228182637,8.10927,1841.6,1841.5,1.08552]
[1746228188034,8.10927,1841.6,1841.5,2.69292]
[1746228189344,1.08572,1841.4,1841.1,5.92224]
[1746228189643,1.08575,1841.3,1841.2,1.0857]
[1746228189835,1.08575,1841.3,1841.2,2.6931]
[1746228190029,4.78175,1841.3,1841.2,2.6931]
[1746228191642,3.696,1841.3,1841.2,7.6931]
[1746228191842,3.696,1841.3,1841.2,8.5421]
[1746228192745,3.696,1841.3,1841.2,11.9891]
[1746228196948,3.696,1841.3,1841.2,6.9891]
[1746228200148,3.696,1841.3,1841.2,11.9891]
[1746228201252,7.23577,1841.6,1841.5,1.08558]
[1746228201654,3.696,1841.6,1841.5,1.08558]
[1746228202049,3.696,1841.6,1841.5,7.81418]
[1746228203252,5.44675493,1841.7,1841.6,1.08552]
[1746228203448,5.44675493,1841.7,1841.6,5.93272]
[1746228204949,0.00693688,1841.9,1841.8,1.0854]
[1746228205149,3.70293688,1841.9,1841.8,1.0854]
[1746228206952,5.37913688,1841.9,1841.8,1.0854]
[1746228211258,3.70293688,1841.9,1841.8,1.0854]
[1746228211666,3.70293688,1841.9,1841.8,1.8877]
[1746228212257,3.70293688,1841.9,1841.8,5.3327]
[1746228217572,3.70293688,1841.9,1841.8,4.5304]
[1746228217767,3.70293688,1841.9,1841.6,3.2078]
[1746228218068,3.4276,1841.8,1841.5,1.08554]
[1746228218272,1.08554,1841.6,1841.5,1.08554]
[1746228218458,4.8485,1841.7,1841.3,7.21779342]
[1746228218663,1.08564,1841.4,1841.3,7.21779342]
[1746228219270,12.26704,1841.4,1841.3,5.90499342]
[1746228220866,12.26704,1841.4,1841.3,6.99069342]
[1746228222478,12.26704,1841.4,1841.3,5.90499342]
[1746228222667,12.26704,1841.4,1841.3,6.99069342]
[1746228222975,12.26704,1841.4,1841.3,1.0857]
[1746228224073,12.2727397,1841.4,1841.3,1.0857]
[1746228224274,6.1870997,1841.4,1841.3,1.0857]
[1746228224466,7.2727397,1841.4,1841.3,1.0857]
[1746228224866,7.2727697,1841.4,1841.3,1.0857]
[1746228225065,6.1870997,1841.4,1841.3,1.0857]
[1746228225466,7.2727397,1841.4,1841.3,1.0857]
[1746228230071,1.0857,1841.3,1841.2,133.6097]
[1746228230273,2.7413,1841.3,1841.2,133.6097]
[1746228231078,6.4373,1841.3,1841.2,133.6097]
[1746228233073,6.4373,1841.3,1841.2,132.524]
[1746228233572,6.4373,1841.3,1841.2,133.60975]
[1746228233777,9.6451,1841.3,1841.2,133.60975]
[1746228235077,14.6451,1841.3,1841.2,132.524]
[1746228237875,9.6451,1841.3,1841.2,132.524]
[1746228243275,1.08581,1841.1,1841.0,1.08586]
[1746228243478,4.29361,1841.1,1841.0,1.08586]
[1746228243685,1.08587,1841.0,1840.9,2.73249]
[1746228244386,4.78187,1841.0,1840.9,2.73249]
[1746228244580,3.696,1841.0,1840.9,2.73249]
[1746228244887,4.78187,1841.0,1840.9,2.73249]
[1746228249586,4.78187,1841.0,1840.9,1.6466]
[1746228249976,6.35917,1841.0,1840.9,1.6466]
[1746228252487,1.08593,1840.9,1840.8,0.7949]
[1746228252692,1.08599,1840.8,1840.7,1.7395]
[1746228252986,1.08605,1840.7,1840.6,0.8502]
[1746228253186,7.25845,1840.7,1840.6,0.8502]
[1746228253780,10.46625,1840.7,1840.6,0.8502]
[1746228254892,1.08611,1840.6,1840.5,1.7395]
[1746228255185,1.08617,1840.5,1840.4,0.8192]
[1746228255484,1.08629,1840.3,1840.2,2.5227]
[1746228255683,1.08629,1840.3,1840.2,2.4694]
[1746228256085,4.78229,1840.3,1840.2,2.4694]
[1746228259794,7.99009,1840.3,1840.2,2.4694]
[1746228262494,7.99009,1840.3,1840.2,0.8192]
[1746228262694,8.78779,1840.3,1840.2,0.8192]
[1746228263488,9.60069,1840.3,1840.2,0.8192]
[1746228263884,9.60069,1840.3,1840.1,1.7006]
[1746228264194,9.60069,1840.3,1839.9,1.88452]
[1746228264195,1.08646,1840.0,1839.9,1.88452]
[1746228264395,1.08646,1840.0,1839.9,2.5441]
[1746228265190,4.78246,1840.0,1839.9,2.5441]
[1746228265498,7.99026,1840.0,1839.9,2.5441]
[1746228267386,1.08664,1839.7,1839.6,1.08665]
[1746228267592,1.08664,1839.7,1839.6,3.48555]
[1746228267786,1.08664,1839.7,1839.6,1.5946]
[1746228267991,2.69094,1839.7,1839.6,1.5946]
[1746228268188,9.59474,1839.7,1839.6,1.5946]
[1746228269796,6.38694,1839.7,1839.6,1.5946]
[1746228271094,9.59474,1839.7,1839.6,1.5946]
[1746228273697,1.0867,1839.6,1839.5,0.8304]
[1746228273898,1.08676,1839.5,1839.4,1.08677]
[1746228274397,6.43696,1839.5,1839.4,1.08677]
[1746228274594,6.43696,1839.5,1839.4,2.72087]
[1746228278002,11.27495,1839.5,1839.1,5.92526]
[1746228278201,1.08682,1839.4,1839.3,1.6565]
[1746228278499,2.79842,1839.4,1839.3,1.6565]
[1746228279104,6.49442,1839.4,1839.3,2.74338]
[1746228280406,4.78282,1839.4,1839.3,2.74338]
[1746228280792,3.696,1839.4,1839.3,2.74338]
[1746228280997,4.78282,1839.4,1839.3,2.74338]
[1746228281205,1.08682,1839.4,1839.3,2.74338]
[1746228288598,2.79872,1839.4,1839.3,2.74338]
[1746228289508,2.79872,1839.4,1839.3,135.26738]
[1746228291111,6.49472,1839.4,1839.3,135.26738]
[1746228291913,3.696,1839.4,1839.3,135.26738]
[1746228292311,4.78282,1839.4,1839.3,135.26738]
[1746228293214,1.08682,1839.4,1839.3,135.26738]
[1746228295213,6.86651,1839.5,1839.4,1.08682]
[1746228297116,10.56251,1839.5,1839.4,1.08682]
[1746228297712,7.35471,1839.5,1839.4,1.08682]
[1746228298517,7.35471,1839.5,1839.4,2.79472]
[1746228303422,7.35471,1839.5,1839.4,1.08682]
[1746228303617,1.08682,1839.4,1839.3,133.61083]
[1746228303819,2.77672,1839.4,1839.3,133.61083]
[1746228304318,6.47272,1839.4,1839.3,133.61083]
[1746228307520,9.68052,1839.4,1839.3,133.61083]
[1746228310323,13.29160719,1839.4,1839.3,133.61083]
[1746228313223,15.79683645,1839.4,1839.3,133.61083]
[1746228315125,15.79683645,1839.4,1839.3,132.524]
[1746228315325,15.79683645,1839.4,1839.3,133.61088]
[1746228320728,10.37362549,1839.4,1839.3,133.61088]
[1746228321526,7.16582549,1839.4,1839.3,133.61088]
[1746228321727,10.37362549,1839.4,1839.3,133.61088]
[1746228325743,17.60457344,1839.4,1839.3,133.61088]
[1746228334044,14.39677344,1839.4,1839.3,133.61088]
[1746228334348,14.39677344,1839.4,1839.3,135.27018]
[1746228334849,14.39677344,1839.4,1839.3,136.06668]
[1746228343655,6.47272,1839.4,1839.3,136.06668]
[1746228344957,9.68052,1839.4,1839.3,136.06668]
[1746228346558,25.32178765,1839.4,1839.3,136.06668]
[1746228348357,22.11398765,1839.4,1839.3,136.06668]
[1746228351358,25.32178765,1839.4,1839.3,136.06668]
[1746228351958,22.11398765,1839.4,1839.3,136.06668]
[1746228352159,25.32178765,1839.4,1839.3,136.06668]
[1746228356466,22.11398765,1839.4,1839.3,136.06668]
[1746228356761,22.11398765,1839.4,1839.3,134.9798]
[1746228356960,22.11398765,1839.4,1839.3,136.06668]
[1746228358065,14.84394863,1839.4,1839.3,136.06668]
[1746228364669,14.84394863,1839.4,1839.3,134.9798]
[1746228369470,13.15404863,1839.4,1839.3,136.06668]
[1746228369768,12.06722863,1839.4,1839.3,144.27448]
[1746228370158,8.37122863,1839.4,1839.3,147.97048]
[1746228370359,8.37122863,1839.4,1839.3,142.97048]
[1746228370662,8.37122863,1839.4,1839.3,147.97048]
[1746228371071,8.37122863,1839.4,1839.3,144.27448]
[1746228371672,8.37122863,1839.4,1839.3,141.06668]
[1746228371874,8.37122863,1839.4,1839.3,144.27448]
[1746228373168,3.63334492,1839.7,1839.6,1.0867]
[1746228373573,3.63334492,1839.7,1839.6,4.4537]
[1746228374175,7.32934492,1839.7,1839.6,4.4537]
[1746228377074,3.696,1839.7,1839.6,4.4537]
[1746228379285,3.63334492,1839.8,1839.7,1.08664]
[1746228379579,3.63334492,1839.8,1839.7,2.77624]
[1746228380477,9.62199492,1839.9,1839.8,1.08658]
[1746228380679,9.62199492,1839.9,1839.8,2.75218]
[1746228381169,9.62199492,1839.9,1839.7,1.08664]
[1746228381170,1.08664,1839.8,1839.7,1.08664]
[1746228381370,2.70014,1839.8,1839.7,1.08664]
[1746228381574,2.70014,1839.8,1839.7,2.75224]
[1746228382069,1.0867,1839.6,1839.5,1.6656]
[1746228382274,1.08681,1839.5,1839.4,1.08676]
[1746228382573,2.70031,1839.5,1839.4,1.08676]
[1746228382973,2.70031,1839.5,1839.4,2.75236]
[1746228383173,6.39626,1839.5,1839.4,2.75236]
[1746228383780,5.3095,1839.5,1839.4,2.75236]
[1746228385982,3.696,1839.5,1839.4,2.75236]
[1746228387273,3.63334492,1839.7,1839.6,1.0867]
[1746228387978,3.63334492,1839.7,1839.6,4.3771]
[1746228390874,4.71998492,1839.7,1839.6,4.3771]
[1746228391082,1.08664,1839.7,1839.6,4.3771]
[1746228391383,2.81524,1839.7,1839.6,3.5786]
[1746228392487,1.7286,1839.7,1839.6,3.5786]
[1746228397691,1.7286,1839.7,1839.6,136.1026]
[1746228410589,2.5268,1839.7,1839.6,134.4146]
[1746228411192,6.2228,1839.7,1839.6,134.4146]
[1746228411794,7.30944,1839.7,1839.6,134.4146]
[1746228412295,6.2228,1839.7,1839.6,134.4146]
[1746228413895,6.2228,1839.7,1839.6,133.6107]
[1746228414896,7.30944,1839.7,1839.6,133.6107]
[1746228417200,6.2228,1839.7,1839.6,133.6107]
[1746228417599,6.2228,1839.7,1839.6,135.3557]
[1746228419206,2.5268,1839.7,1839.6,135.3557]
[1746228419410,6.85308937,1839.7,1839.6,135.3557]
[1746228421114,11.63572937,1839.7,1839.6,133.6107]
[1746228421506,11.63572937,1839.7,1839.6,132.524]
[1746228421710,25.66352937,1839.7,1839.6,132.524]
[1746228421911,25.66352937,1839.7,1839.6,119.958]
[1746228422712,21.33724,1839.7,1839.6,119.958]
[1746228426217,29.00565994,1839.7,1839.6,110.25378739]
[1746228428518,38.76668825,1839.7,1839.6,110.25378739]
[1746228430219,33.76668825,1839.7,1839.6,110.25378739]
[1746228430612,38.76668825,1839.7,1839.6,110.25378739]
[1746228432423,24.69878229,1839.7,1839.6,110.25378739]
[1746228436124,31.94372912,1839.7,1839.6,110.25378739]
[1746228437117,31.94372912,1839.7,1839.6,109.04887739]
[1746228437323,31.94372912,1839.7,1839.6,106.59586739]
[1746228437526,36.94372912,1839.7,1839.6,85.9066127]
[1746228437725,36.94372912,1839.7,1839.6,82.7348727]
[1746228437926,37.03965641,1839.7,1839.6,80.9770727]
[1746228438520,37.03965717,1839.7,1839.6,79.5068527]
[1746228438720,37.03965717,1839.7,1839.6,76.5799227]
[1746228438932,37.03965717,1839.7,1839.6,73.8852927]
[1746228439927,37.03965717,1839.7,1839.6,53.57162801]
[1746228440124,37.03965717,1839.7,1839.6,52.32859801]
[1746228440324,37.03965708,1839.7,1839.6,49.67509801]
[1746228440824,29.79471025,1839.7,1839.6,48.38353801]
[1746228441030,29.79471025,1839.7,1839.6,47.09919801]
[1746228441828,29.79471015,1839.7,1839.6,45.95157801]
[1746228442025,29.79471015,1839.7,1839.6,44.80752801]
[1746228442228,29.69878229,1839.7,1839.6,42.54482801]
[1746228442829,29.7947103,1839.7,1839.6,42.54482801]
[1746228445123,29.7947103,1839.7,1839.6,22.36503332]
[1746228445329,29.79471129,1839.7,1839.6,19.06702332]
[1746228445530,38.84236786,1839.7,1839.6,15.99167332]
[1746228446030,38.84236786,1839.7,1839.6,14.53465332]
[1746228446220,38.84236786,1839.7,1839.6,11.54612332]
[1746228446425,38.84236786,1839.7,1839.6,9.92953332]
[1746228446625,38.84236786,1839.7,1839.6,7.01806332]
[1746228446825,33.84236786,1839.7,1839.6,5.55769332]
[1746228447233,33.84236786,1839.7,1839.6,4.21749332]
[1746228447426,33.84236786,1839.7,1839.6,2.89027332]
[1746228447626,33.84236786,1839.7,1839.6,1.53247332]
[1746228447827,1.08693,1839.2,1839.1,1.584]
[1746228448028,4.29473,1839.2,1839.1,1.584]
[1746228448228,7.99073,1839.2,1839.1,1.584]
[1746228450936,7.99073,1839.2,1839.1,2.67099]
[1746228451535,7.99073,1839.2,1839.1,1.584]
[1746228455541,7.99073,1839.2,1839.1,2.67099]
[1746228456337,7.99073,1839.2,1839.1,1.584]
[1746228456638,7.99073,1839.2,1839.1,2.67099]
[1746228458241,7.99073,1839.2,1839.1,1.584]
[1746228459542,7.99073,1839.2,1839.1,2.67099]
[1746228460137,7.99073,1839.2,1839.1,3.53789]
[1746228465348,12.30344779,1839.2,1839.1,3.53789]
[1746228469444,10.90540184,1839.2,1839.1,3.53789]
[1746228469843,14.11320184,1839.2,1839.1,3.53789]
[1746228470453,14.11320184,1839.2,1839.1,1.584]
[1746228470645,1.08699,1839.1,1839.0,0.8135]
[1746228470845,2.68619,1839.1,1839.0,0.8135]
[1746228471250,6.38219,1839.1,1839.0,0.8135]
[1746228471651,6.38219,1839.1,1839.0,2.4872]
[1746228474556,14.54159187,1839.1,1839.0,2.4872]
[1746228475359,20.36159187,1839.1,1839.0,2.4872]
[1746228475865,18.76239187,1839.1,1839.0,2.4872]
[1746228478861,26.02846203,1839.1,1839.0,2.4872]
[1746228481268,22.80996203,1839.1,1839.0,2.4872]
[1746228481872,22.80996203,1839.1,1839.0,0.8135]
[1746228482063,23.63376203,1839.1,1839.0,0.8135]
[1746228482266,1.08711,1838.9,1838.8,3.63102]
[1746228482466,4.29491,1838.9,1838.8,3.63102]
[1746228485071,10.44117466,1838.9,1838.8,3.63102]
[1746228486177,7.23337466,1838.9,1838.8,3.63102]
[1746228487076,10.44117466,1838.9,1838.8,3.63102]
[1746228487276,14.13717466,1838.9,1838.8,3.63102]
[1746228488377,10.44117466,1838.9,1838.8,3.63102]
[1746228490675,7.23337466,1838.9,1838.8,3.63102]
[1746228491180,10.92937466,1838.9,1838.8,3.63102]
[1746228492178,7.23337466,1838.9,1838.8,3.63102]
[1746228502287,9.64457466,1838.9,1838.8,3.63102]
[1746228502680,9.64457466,1838.9,1838.8,2.75762]
[1746228503086,13.34057466,1838.9,1838.8,2.75762]
[1746228505189,9.64457466,1838.9,1838.8,2.75762]
[1746228507088,13.34057466,1838.9,1838.8,2.75762]
[1746228507395,13.34057466,1838.9,1838.8,1.08712]
[1746228508092,9.64457466,1838.9,1838.8,1.08712]
[1746228508790,4.19151971,1838.9,1838.8,1.08712]
[1746228508993,1.08723,1838.8,1838.7,1.08718]
[1746228509194,6.79113,1838.8,1838.7,1.08718]
[1746228510195,10.48713,1838.8,1838.7,1.08718]
[1746228513795,16.63444996,1838.8,1838.7,2.80528]
[1746228515395,15.79314996,1838.8,1838.7,2.80528]
[1746228515594,14.13834996,1838.8,1838.7,2.80528]
[1746228516296,10.44234996,1838.8,1838.7,2.80528]
[1746228517095,12.14674996,1838.8,1838.7,2.80528]
[1746228519399,8.93894996,1838.8,1838.7,2.80528]
[1746228523403,8.93894996,1838.8,1838.7,1.08718]
[1746228526098,12.63494996,1838.8,1838.7,1.08718]
[1746228526506,15.84274996,1838.8,1838.7,1.08718]
[1746228528104,12.14674996,1838.8,1838.7,1.08718]
[1746228528607,13.95870987,1838.8,1838.7,1.08718]
[1746228530208,17.65470987,1838.8,1838.7,1.08718]
[1746228531798,17.65470987,1838.8,1838.7,2.76058]
[1746228532105,13.95870987,1838.8,1838.7,2.76058]
[1746228533008,0.69320971,1838.8,1838.7,2.76058]
[1746228536808,6.54291505,1838.9,1838.8,1.08717]
[1746228537015,6.54291505,1838.9,1838.8,3.50937]
[1746228539917,7.23617282,1838.9,1838.8,3.50937]
[1746228540226,6.14905282,1838.9,1838.8,3.50937]
[1746228540521,7.23616282,1838.9,1838.8,3.50937]
[1746228541314,8.96656282,1838.9,1838.8,3.50937]
[1746228541519,7.87945282,1838.9,1838.8,3.50937]
[1746228544529,12.17436282,1838.9,1838.8,3.50937]
[1746228544729,11.08725282,1838.9,1838.8,3.50937]
[1746228545431,7.87945282,1838.9,1838.8,3.50937]
[1746228545630,11.08725282,1838.9,1838.8,3.50937]
[1746228547129,14.78325282,1838.9,1838.8,3.50937]
[1746228547629,15.87036282,1838.9,1838.8,3.50937]
[1746228548134,11.08725282,1838.9,1838.8,3.50937]
[1746228550525,7.87945282,1838.9,1838.8,3.50937]
[1746228551725,11.51531735,1838.9,1838.8,3.50937]
[1746228551931,12.60242735,1838.9,1838.8,3.50937]
[1746228554131,16.29842735,1838.9,1838.8,3.50937]
[1746228555132,12.60242735,1838.9,1838.8,3.50937]
[1746228555832,11.51531735,1838.9,1838.8,3.50937]
[1746228556034,7.87945282,1838.9,1838.8,3.50937]
[1746228556227,8.96656282,1838.9,1838.8,3.50937]
[1746228557733,1.08722,1838.8,1838.7,1.08718]